bitfinex/quotes_BTCUSD_20250109
["timestamp","ask_amount","ask_price","bid_price","bid_amount"]
[1736422978735,0.001,93458.0,93446.0,0.17979976]
[1736422978947,0.001,93458.0,93447.0,0.214025]
[1736422979149,0.001,93458.0,93446.0,0.17979976]
[1736422979150,0.001,93458.0,93451.0,0.214014]
[1736422979500,0.213983,93466.0,93451.0,0.214014]
[1736422979709,2.35,93465.0,93451.0,0.214014]
[1736422979934,1.27,93465.0,93454.0,0.214007]
[1736422980138,0.213983,93466.0,93451.0,0.214014]
[1736422980335,0.475,93465.0,93448.0,0.10429976]
[1736422980551,0.802983,93466.0,93454.0,0.214008]
[1736422980772,2.531772,93465.0,93449.0,0.21402]
[1736422980921,2.531772,93465.0,93453.0,0.214011]
[1736422981344,0.213986,93464.0,93453.0,0.214011]
[1736422981553,0.001,93458.0,93453.0,0.214011]
[1736422981966,0.213986,93464.0,93453.0,0.215011]
[1736422982189,0.252,93463.0,93453.0,0.218011]
[1736422982407,0.183,93468.0,93453.0,0.218011]
[1736422982612,0.14,93467.0,93457.0,0.214001]
[1736422982807,0.439,93468.0,93457.0,0.214001]
[1736422983008,0.001,93458.0,93457.0,0.214001]
[1736422983239,0.213975,93469.0,93457.0,0.214001]
[1736422983882,0.213983,93466.0,93453.0,0.002]
[1736422984208,0.213983,93465.0,93453.0,0.002]
[1736422984509,0.213978,93468.0,93454.0,0.214009]
[1736422984715,0.213985,93465.0,93450.0,0.31831676]
[1736422984909,2.63740751,93464.0,93453.0,0.001]
[1736422985134,0.214001,93458.0,93453.0,0.001]
[1736422985349,0.174,93457.0,93446.0,0.214025]
[1736422985560,0.174,93457.0,93453.0,0.003]
[1736422985793,0.214004,93456.0,93453.0,0.003]
[1736422986008,0.213986,93464.0,93446.0,0.214025]
[1736422986187,0.213986,93464.0,93453.0,0.003]
[1736422986188,0.21346503,93457.0,93453.0,0.003]
[1736422986424,0.15,93469.0,93453.0,0.003]
[1736422986629,0.213993,93461.0,93450.0,0.214017]
[1736422986836,0.001,93457.0,93453.0,0.006]
[1736422987069,0.001,93457.0,93454.0,0.0789]
[1736422987277,0.001,93457.0,93455.0,0.260506]
[1736422987491,0.001,93457.0,93456.0,0.10429976]
[1736422988116,0.01084384,93473.0,93466.0,0.213979]
[1736422988543,0.213951,93480.0,93466.0,0.213979]
[1736422988544,0.427902,93480.0,93466.0,0.213979]
[1736422988745,0.213958,93476.0,93466.0,0.213979]
[1736422989162,0.01079002,93480.0,93470.0,0.213971]
[1736422989390,0.00050054,93476.0,93466.0,0.213979]
[1736422989603,0.001,93473.0,93466.0,0.213979]
[1736422990039,0.00050054,93476.0,93469.0,0.213973]
[1736422990253,0.00050054,93476.0,93466.0,0.213979]
[1736422990457,0.001,93473.0,93466.0,0.213979]
[1736422990681,0.001,93473.0,93463.0,0.213987]
[1736422990928,0.213965,93474.0,93463.0,0.213987]
[1736422991136,0.00050054,93476.0,93463.0,0.213987]
[1736422991350,0.00150054,93476.0,93467.0,0.213978]
[1736422991568,0.00350054,93476.0,93467.0,0.213978]
[1736422991779,0.00050054,93476.0,93467.0,0.213978]
[1736422991999,0.00050054,93476.0,93470.0,0.21397]
[1736422992217,0.002,93474.0,93467.0,0.213978]
[1736422992347,0.001,93474.0,93467.0,0.213978]
[1736422993361,0.00050054,93476.0,93470.0,0.001]
[1736422994779,0.00050054,93476.0,93472.0,0.213967]
[1736422994951,0.00050054,93476.0,93474.0,0.213961]
[1736422995193,0.00050054,93476.0,93475.0,0.15246945]
[1736422996421,0.00050054,93476.0,93475.0,0.50359976]
[1736422996594,0.213848,93525.0,93475.0,0.50359976]
[1736422996595,0.0001704,93514.0,93487.0,0.2292]
[1736422996793,0.00032073,93496.0,93495.0,0.213915]
[1736422996997,0.00032073,93496.0,93495.0,0.31821476]
[1736422998215,0.00032073,93496.0,93495.0,0.31921476]
[1736422999122,0.00032073,93496.0,93495.0,0.005]
[1736423000178,0.00032073,93496.0,93495.0,0.004]
[1736423000387,0.00032073,93496.0,93495.0,0.005]
[1736423000825,0.00032073,93496.0,93495.0,0.001]
[1736423001041,0.00032073,93496.0,93488.0,0.213929]
[1736423001253,0.00032073,93496.0,93495.0,0.003]
[1736423001495,0.00032073,93496.0,93495.0,0.004]
[1736423001694,0.00032073,93496.0,93495.0,0.001]
[1736423002016,0.00032073,93496.0,93495.0,0.005]
[1736423002616,0.00032073,93496.0,93495.0,0.004]
[1736423002846,0.00032073,93496.0,93495.0,0.17287686]
[1736423003179,0.00032073,93496.0,93495.0,0.39794619]
[1736423003389,0.00032073,93496.0,93495.0,0.39687686]
[1736423003849,0.00032073,93496.0,93495.0,0.51987686]
[1736423004061,0.00032073,93496.0,93495.0,0.66987686]
[1736423004240,0.00032073,93496.0,93495.0,0.66587686]
[1736423004448,0.0001704,93514.0,93506.0,0.21389]
[1736423004671,0.0001704,93514.0,93513.0,0.1]
[1736423004884,0.0001704,93514.0,93513.0,0.56924289]
[1736423005092,0.0001704,93514.0,93513.0,0.56817376]
[1736423006020,0.0011704,93514.0,93513.0,0.47617376]
[1736423006176,0.0011704,93514.0,93513.0,0.57617376]
[1736423006377,0.0011704,93514.0,93513.0,0.68047352]
[1736423007025,0.0011704,93514.0,93513.0,0.68347352]
[1736423008138,0.0011704,93514.0,93513.0,0.32917376]
[1736423010035,0.0011704,93514.0,93513.0,0.42917376]
[1736423010235,0.00063243,93514.0,93513.0,0.42917376]
[1736423010660,0.00063243,93514.0,93513.0,0.45217376]
[1736423011059,0.00063243,93514.0,93513.0,0.60217376]
[1736423011305,0.00063243,93514.0,93513.0,0.78207352]
[1736423013084,0.00063243,93514.0,93513.0,0.68207352]
[1736423013292,0.00063243,93514.0,93513.0,0.50907352]
[1736423013523,0.00063243,93514.0,93513.0,0.40477376]
[1736423014360,0.00063243,93514.0,93513.0,0.011]
[1736423014787,2.53240443,93514.0,93513.0,0.011]
[1736423015396,2.531772,93514.0,93513.0,0.003]
[1736423015603,0.213871,93514.0,93513.0,0.003]
[1736423015815,2.745643,93514.0,93513.0,0.004]
[1736423016036,2.745643,93514.0,93494.0,0.213916]
[1736423016241,0.10563551,93510.0,93495.0,0.10429976]
[1736423016445,0.213883,93509.0,93495.0,0.10429976]
[1736423016655,0.213883,93509.0,93496.0,0.213912]
[1736423016863,0.213883,93509.0,93498.0,0.213908]
[1736423017072,0.213883,93509.0,93498.0,0.31820776]
[1736423017872,0.07239486,93510.0,93498.0,0.31820776]
[1736423018080,0.213874,93513.0,93501.0,0.213901]
[1736423018283,0.22464784,93516.0,93502.0,0.10429976]
[1736423018284,0.213868,93516.0,93502.0,0.10429976]
[1736423018447,2.19,93515.0,93505.0,0.213891]
[1736423018660,2.171,93515.0,93505.0,0.213891]
[1736423018879,2.451,93519.0,93507.0,0.213887]
[1736423019103,2.451,93519.0,93506.0,0.03714031]
[1736423019104,0.213843,93527.0,93513.0,0.213873]
[1736423019323,0.21385,93524.0,93513.0,0.213873]
[1736423019554,0.4277,93524.0,93510.0,0.213879]
[1736423019752,0.4277,93524.0,93510.0,0.26708638]
[1736423019959,0.21385,93524.0,93514.0,0.213871]
[1736423020204,0.01096931,93528.0,93517.0,0.213864]
[1736423020403,0.214,93527.0,93518.0,0.10429976]
[1736423020608,0.001,93524.0,93518.0,0.10429976]
[1736423020813,0.21485,93524.0,93511.0,0.213878]
[1736423021026,0.21485,93524.0,93512.0,0.10429976]
[1736423021027,0.10563551,93521.0,93512.0,0.10429976]
[1736423021233,0.213857,93520.0,93505.0,0.001]
[1736423021422,0.213872,93514.0,93505.0,0.001]
[1736423021864,0.213872,93514.0,93503.0,0.213895]
[1736423022047,0.213872,93514.0,93505.0,0.213892]
[1736423022413,0.10563551,93515.0,93506.0,0.21389]
[1736423022646,0.213847,93525.0,93512.0,0.213874]
[1736423022816,0.213851,93523.0,93512.0,0.213874]
[1736423023032,0.166,93522.0,93512.0,0.213874]
[1736423023235,0.10563551,93522.0,93512.0,0.213874]
[1736423024061,0.10563551,93522.0,93515.0,0.213867]
[1736423024579,0.31948951,93522.0,93512.0,0.213874]
[1736423024814,0.32048951,93522.0,93512.0,0.213874]
[1736423025033,0.32048951,93522.0,93510.0,0.21388]
[1736423025220,0.31995154,93522.0,93510.0,0.31817976]
[1736423025413,0.31995154,93522.0,93510.0,0.37138674]
[1736423025655,0.31995254,93522.0,93510.0,0.37138674]
[1736423025861,0.32195254,93522.0,93510.0,0.31817976]
[1736423026060,0.32095254,93522.0,93510.0,0.31817976]
[1736423026268,0.213861,93519.0,93510.0,0.10429976]
[1736423026540,0.213875,93513.0,93502.0,0.213897]
[1736423026744,0.10563551,93512.0,93493.0,0.213917]
[1736423026945,0.10563551,93512.0,93494.0,0.14708476]
[1736423027149,0.10563551,93520.0,93495.0,0.00106951]
[1736423027359,0.213864,93518.0,93497.0,0.21391]
[1736423027562,0.10563551,93520.0,93487.0,0.023]
[1736423027563,0.10563551,93520.0,93498.0,0.10429976]
[1736423027770,0.213867,93516.0,93504.0,0.213892]
[1736423027942,0.10563551,93514.0,93505.0,0.10429976]
[1736423028820,0.213874,93513.0,93505.0,0.10429976]
[1736423029666,0.10563551,93514.0,93488.0,0.213931]
[1736423029837,0.21389,93507.0,93496.0,0.213911]
[1736423030047,0.21389,93507.0,93498.0,0.213908]
[1736423030254,0.213878,93511.0,93499.0,0.10429976]
[1736423030448,0.10563551,93510.0,93505.0,0.001]
[1736423030651,0.10563551,93510.0,93505.0,0.003]
[1736423030849,0.10563551,93510.0,93501.0,0.213901]
[1736423031087,0.21386,93520.0,93508.0,0.213884]
[1736423031299,0.21385,93524.0,93509.0,0.10429976]
[1736423031498,0.10563551,93520.0,93511.0,0.213877]
[1736423031689,0.501,93519.0,93511.0,0.213877]
[1736423032119,0.10563551,93520.0,93515.0,0.213867]
[1736423032322,0.10563551,93520.0,93509.0,0.10429976]
[1736423032552,0.10563551,93520.0,93510.0,0.25378918]
[1736423032729,0.10563551,93520.0,93510.0,0.35808894]
[1736423033363,0.21386,93519.0,93510.0,0.35808894]
[1736423033564,0.21386,93519.0,93510.0,0.31817976]
[1736423033986,0.10563551,93520.0,93510.0,0.31817976]
[1736423034185,0.10663551,93520.0,93510.0,0.31817976]
[1736423034388,0.21386,93519.0,93510.0,0.31817976]
[1736423034591,0.21386,93519.0,93510.0,0.10429976]
[1736423035355,0.213868,93516.0,93510.0,0.10429976]
[1736423035881,0.21386,93519.0,93510.0,0.10429976]
[1736423036084,0.21386,93519.0,93511.0,0.213878]
[1736423036496,0.10563551,93520.0,93511.0,0.427756]
[1736423036709,0.10563551,93520.0,93511.0,0.213878]
[1736423036919,0.21386,93519.0,93510.0,0.16659714]
[1736423037116,0.21386,93519.0,93510.0,0.10529976]
[1736423037553,0.21386,93519.0,93510.0,0.10429976]
[1736423038406,0.10563551,93520.0,93511.0,0.213878]
[1736423038586,0.21386,93519.0,93510.0,0.10429976]
[1736423038788,0.10563551,93520.0,93510.0,0.10429976]
[1736423038967,0.10563551,93520.0,93511.0,0.427756]
[1736423039174,0.22437583,93528.0,93515.0,0.213867]
[1736423039378,0.00015004,93530.0,93516.0,0.10429976]
[1736423039790,0.00015004,93530.0,93522.0,0.213852]
[1736423040009,0.00015004,93530.0,93527.0,0.21384]
[1736423040214,0.0111462,93530.0,93527.0,0.45949498]
[1736423040422,0.00015004,93530.0,93527.0,0.21384]
[1736423040873,0.00015004,93530.0,93523.0,0.31814876]
[1736423041093,0.00415004,93530.0,93527.0,0.21384]
[1736423041292,0.00215004,93530.0,93529.0,0.340737]
[1736423041509,0.00215004,93530.0,93529.0,0.44503676]
[1736423041739,0.00415004,93530.0,93529.0,0.54392444]
[1736423042089,0.00415004,93530.0,93529.0,0.79392444]
[1736423042290,0.00415004,93530.0,93529.0,0.69392444]
[1736423042487,0.00215004,93530.0,93529.0,0.69392444]
[1736423042769,0.00215004,93530.0,93529.0,0.46803676]
[1736423042974,0.00315004,93530.0,93529.0,0.50139169]
[1736423043092,0.00115004,93530.0,93529.0,0.50139169]
[1736423043295,0.00015004,93530.0,93529.0,0.46803676]
[1736423043505,0.00015004,93530.0,93529.0,0.46903676]
[1736423043727,0.00015004,93530.0,93529.0,0.47103676]
[1736423043928,0.00015004,93530.0,93529.0,0.57533652]
[1736423044152,0.00015004,93530.0,93529.0,0.58233652]
[1736423045785,0.00015004,93530.0,93529.0,0.77430831]
[1736423046749,0.00015004,93530.0,93529.0,0.58233652]
[1736423049590,0.00015004,93530.0,93529.0,0.72622918]
[1736423049786,0.00015004,93530.0,93529.0,0.47202942]
[1736423050203,0.00015004,93530.0,93529.0,0.42405195]
[1736423051197,0.00015004,93530.0,93529.0,0.32813676]
[1736423058031,0.00015004,93530.0,93529.0,0.11429976]
[1736423060332,0.00015004,93530.0,93529.0,0.11129976]
[1736423060548,0.00015004,93530.0,93529.0,0.15926755]
[1736423060968,0.00015004,93530.0,93529.0,0.16326742]
[1736423061171,0.00015004,93530.0,93529.0,0.24166742]
[1736423061378,0.00015004,93530.0,93529.0,0.24059844]
[1736423061621,0.00015004,93530.0,93529.0,0.26859844]
[1736423061904,0.00015004,93530.0,93529.0,0.61859844]
[1736423062094,0.00015004,93530.0,93529.0,0.73139844]
[1736423062268,0.00015004,93530.0,93529.0,0.61359844]
[1736423062469,0.00015004,93530.0,93529.0,0.61159844]
[1736423062699,0.00015004,93530.0,93529.0,0.61459844]
[1736423063543,0.00015004,93530.0,93529.0,0.62159844]
[1736423063928,0.00015004,93530.0,93529.0,0.53218489]
[1736423064479,0.00015004,93530.0,93529.0,0.63218489]
[1736423065361,0.00015004,93530.0,93529.0,0.68098489]
[1736423065756,4e-08,93530.0,93529.0,0.68098489]
[1736423066564,4e-08,93530.0,93529.0,0.67798489]
[1736423066768,4e-08,93530.0,93529.0,0.68098489]
[1736423066991,4e-08,93530.0,93529.0,0.87295668]
[1736423067194,4e-08,93530.0,93529.0,0.86595668]
[1736423067491,0.00248004,93530.0,93529.0,0.87195668]
[1736423068678,0.00248004,93530.0,93529.0,0.87695668]
[1736423069942,0.00248004,93530.0,93529.0,0.91027794]
[1736423071067,0.0001704,93547.0,93546.0,0.213798]
[1736423071315,0.0001704,93547.0,93546.0,0.55219896]
[1736423072362,0.0001704,93547.0,93546.0,0.55419896]
[1736423072739,0.0001704,93547.0,93546.0,0.55819896]
[1736423073120,0.0001704,93547.0,93546.0,0.45779896]
[1736423074312,0.0001704,93547.0,93546.0,0.38365776]
[1736423075040,0.0001704,93547.0,93546.0,0.40665776]
[1736423075817,0.0001704,93547.0,93546.0,0.38365776]
[1736423076850,0.0001704,93547.0,93546.0,0.53365776]
[1736423076978,0.0001704,93547.0,93546.0,0.63365776]
[1736423077184,0.0001704,93547.0,93546.0,0.73795752]
[1736423077814,0.0001704,93547.0,93546.0,0.63365776]
[1736423078021,0.0001704,93547.0,93546.0,0.53365776]
[1736423078567,0.0001704,93547.0,93546.0,0.63365776]
[1736423081658,0.0001704,93547.0,93546.0,0.72948326]
[1736423082415,0.0001704,93547.0,93546.0,0.63365776]
[1736423082620,0.0001704,93547.0,93546.0,0.73795752]
[1736423085317,0.0001704,93547.0,93546.0,0.76095752]
[1736423086330,0.0001704,93547.0,93546.0,0.9182016]
[1736423086971,0.0001704,93547.0,93546.0,1.20315098]
[1736423087387,4e-07,93547.0,93546.0,1.30315098]
[1736423087793,4e-07,93547.0,93546.0,1.0122016]
[1736423088212,4e-07,93547.0,93546.0,1.0262016]
[1736423089204,6e-07,93552.0,93551.0,0.35]
[1736423089390,6e-07,93552.0,93551.0,0.6911436]
[1736423091185,6e-07,93552.0,93551.0,0.7041436]
[1736423091704,6e-07,93552.0,93551.0,0.7147829]
[1736423093193,6e-07,93552.0,93551.0,1.00261023]
[1736423094005,6e-07,93552.0,93551.0,0.7057829]
[1736423094206,6e-07,93552.0,93551.0,0.7017829]
[1736423094453,6e-07,93552.0,93551.0,0.7107829]
[1736423094642,6e-07,93552.0,93551.0,0.7147829]
[1736423094896,6e-07,93552.0,93551.0,0.38748314]
[1736423095116,6e-07,93552.0,93551.0,0.17601976]
[1736423095967,6e-07,93552.0,93551.0,0.2689884]
[1736423096219,6e-07,93552.0,93551.0,0.26791962]
[1736423096613,6e-07,93552.0,93551.0,0.11329976]
[1736423097407,6e-07,93552.0,93551.0,0.11629976]
[1736423097610,6e-07,93552.0,93551.0,0.10729976]
[1736423097805,6e-07,93552.0,93551.0,0.11529976]
[1736423098028,6e-07,93552.0,93551.0,0.11229976]
[1736423098259,6e-07,93552.0,93551.0,0.10629976]
[1736423098561,6e-07,93552.0,93551.0,0.11536854]
[1736423099400,6e-07,93552.0,93551.0,0.10536854]
[1736423099606,6e-07,93552.0,93551.0,0.11436854]
[1736423100521,6e-07,93552.0,93551.0,0.11329976]
[1736423100726,6e-07,93552.0,93551.0,0.15909998]
[1736423100934,6e-07,93552.0,93551.0,0.15009998]
[1736423101120,6e-07,93552.0,93551.0,0.15609998]
[1736423101321,6e-07,93552.0,93551.0,0.11436854]
[1736423101526,6e-07,93552.0,93551.0,0.10729976]
[1736423101889,6e-07,93552.0,93551.0,0.11529976]
[1736423102117,6e-07,93552.0,93551.0,0.10729976]
[1736423102289,0.0824006,93552.0,93551.0,0.10729976]
[1736423102555,0.0824006,93552.0,93551.0,0.11329976]
[1736423102940,0.0824006,93552.0,93551.0,0.10429976]
[1736423103557,6e-07,93552.0,93551.0,0.10429976]
[1736423103961,6e-07,93552.0,93551.0,0.10829976]
[1736423104479,6e-07,93552.0,93551.0,0.10429976]
[1736423105039,6e-07,93552.0,93551.0,0.11329976]
[1736423105240,6e-07,93552.0,93551.0,0.17976794]
[1736423105478,6e-07,93552.0,93551.0,0.10529976]
[1736423105687,6e-07,93552.0,93551.0,0.11129976]
[1736423105893,6e-07,93552.0,93551.0,0.12729976]
[1736423106100,6e-07,93552.0,93551.0,0.27729976]
[1736423106320,6e-07,93552.0,93551.0,0.38629976]
[1736423106525,6e-07,93552.0,93551.0,0.59222228]
[1736423106734,6e-07,93552.0,93551.0,0.70068259]
[1736423106943,6e-07,93552.0,93551.0,0.70968259]
[1736423107155,0.0001704,93562.0,93561.0,0.661864]
[1736423107364,0.00032042,93562.0,93561.0,0.85824407]
[1736423107568,0.00032042,93562.0,93561.0,0.96254383]
[1736423108940,4.2e-07,93562.0,93561.0,1.88224383]
[1736423109271,4.2e-07,93562.0,93561.0,1.89124383]
[1736423109535,8.2e-07,93568.0,93567.0,0.56375]
[1736423109742,8.2e-07,93568.0,93567.0,0.72441007]
[1736423109991,8.2e-07,93568.0,93567.0,0.82870983]
[1736423111763,8.2e-07,93568.0,93567.0,0.91080983]
[1736423111936,8.2e-07,93568.0,93567.0,0.92580983]
[1736423112599,8.2e-07,93568.0,93567.0,0.91980983]
[1736423112814,8.2e-07,93568.0,93567.0,1.19863827]
[1736423113126,4.2e-07,93570.0,93569.0,0.2]
[1736423113355,4.2e-07,93570.0,93569.0,0.69692815]
[1736423113559,4.2e-07,93570.0,93569.0,0.69585983]
[1736423113764,4.2e-07,93570.0,93569.0,1.56645983]
[1736423114844,4.2e-07,93570.0,93569.0,1.37245983]
[1736423115071,4.2e-07,93570.0,93569.0,1.33629614]
[1736423115281,4.2e-07,93570.0,93569.0,1.26857614]
[1736423115487,4.2e-07,93570.0,93569.0,0.10429976]
[1736423115693,4.2e-07,93570.0,93569.0,0.12029976]
[1736423115935,0.00100042,93570.0,93569.0,0.007]
[1736423116403,0.04950042,93570.0,93569.0,0.016]
[1736423116605,0.04950042,93570.0,93569.0,0.007]
[1736423117253,0.04850042,93570.0,93569.0,0.0434509]
[1736423117636,0.04850042,93570.0,93569.0,0.003]
[1736423117897,0.04850042,93570.0,93569.0,0.007]
[1736423118109,0.04850042,93570.0,93569.0,0.004]
[1736423118321,0.04850042,93570.0,93563.0,0.213759]
[1736423118538,0.04950042,93570.0,93563.0,0.31805876]
[1736423118750,0.04950042,93570.0,93554.0,0.213778]
[1736423118751,0.04950042,93570.0,93554.0,0.272498]
[1736423118965,0.10563551,93564.0,93545.0,0.09589405]
[1736423119175,0.15413593,93570.0,93545.0,0.09589405]
[1736423119176,0.10563551,93555.0,93546.0,0.10429976]
[1736423119383,0.08,93554.0,93541.0,0.09589405]
[1736423119593,0.0478,93546.0,93542.0,0.10429976]
[1736423120065,0.0478,93546.0,93543.0,0.213805]
[1736423121314,0.0478,93546.0,93542.0,0.10429976]
[1736423121548,0.0789,93563.0,93542.0,0.10429976]
[1736423121751,0.29266,93563.0,93545.0,0.001]
[1736423121981,0.29266,93563.0,93545.0,0.10529976]
[1736423121982,0.001,93546.0,93545.0,0.10529976]
[1736423122184,0.213771,93558.0,93545.0,0.10429976]
[1736423122313,0.213778,93555.0,93545.0,0.10429976]
[1736423123396,0.213788,93551.0,93545.0,0.10429976]
[1736423124003,0.213778,93555.0,93545.0,0.10429976]
[1736423124205,0.213778,93555.0,93545.0,0.10529976]
[1736423124659,0.213778,93555.0,93545.0,0.001]
[1736423124869,0.213787,93551.0,93542.0,0.002]
[1736423125070,0.213787,93551.0,93542.0,0.10429976]
[1736423125273,0.213787,93551.0,93534.0,0.213825]
[1736423125274,0.213797,93547.0,93534.0,0.213825]
[1736423125514,0.10563551,93544.0,93535.0,0.10429976]
[1736423125747,0.078,93546.0,93536.0,0.213821]
[1736423125968,0.0483,93545.0,93537.0,0.10429976]
[1736423126194,0.0483,93545.0,93538.0,0.213816]
[1736423126408,0.0483,93545.0,93539.0,0.10429976]
[1736423127313,0.213803,93544.0,93533.0,0.213827]
[1736423127512,0.213803,93544.0,93534.0,0.10429976]
[1736423127639,0.213803,93544.0,93535.0,0.001]
[1736423128072,0.213803,93544.0,93530.0,0.213833]
[1736423128289,0.213803,93544.0,93527.0,0.0586]
[1736423128290,0.31944851,93540.0,93531.0,0.10429976]
[1736423128489,0.213821,93536.0,93533.0,0.001]
[1736423128890,0.213814,93539.0,93531.0,0.10429976]
[1736423129152,0.213803,93544.0,93531.0,0.31813176]
[1736423129265,0.213803,93544.0,93532.0,0.21383]
[1736423129477,0.427606,93544.0,93532.0,0.21398002]
[1736423130315,0.213814,93540.0,93532.0,0.00015002]
[1736423130952,0.10563551,93542.0,93532.0,0.00015002]
[1736423130953,0.213824,93535.0,93532.0,0.00015002]
[1736423131155,2.614372,93534.0,93532.0,0.00015002]
[1736423131365,2.9438,93533.0,93532.0,0.00015002]
[1736423131565,3.0267,93533.0,93532.0,0.00015002]
[1736423132178,1.61740617,93533.0,93532.0,0.00015002]
[1736423132381,1.61740617,93533.0,93532.0,0.00115002]
[1736423133003,1.61940617,93533.0,93532.0,0.00115002]
[1736423133795,1.82370593,93533.0,93532.0,0.00115002]
[1736423134191,1.84348616,93533.0,93532.0,0.00115002]
[1736423134592,1.84348616,93533.0,93532.0,0.00015002]
[1736423134963,1.84448616,93533.0,93532.0,0.00015002]
[1736423138059,0.73248616,93533.0,93532.0,0.00015002]
[1736423138266,3.26425816,93533.0,93532.0,0.00015002]
[1736423140681,1.74440617,93533.0,93532.0,0.00015002]
[1736423140886,1.60540617,93533.0,93532.0,0.00015002]
[1736423143151,1.37940617,93533.0,93532.0,0.00015002]
[1736423144214,1.31340617,93533.0,93532.0,0.00015002]
[1736423144417,0.22730617,93533.0,93532.0,0.00015002]
[1736423144535,0.003,93533.0,93532.0,0.00015002]
[1736423144735,0.003,93533.0,93532.0,0.02154962]
[1736423144935,0.003,93533.0,93532.0,0.00015002]
[1736423145149,0.0487,93556.0,93532.0,0.00015002]
[1736423145150,0.10563551,93550.0,93532.0,0.21398002]
[1736423145356,0.213792,93549.0,93533.0,0.213828]
[1736423145565,0.213792,93549.0,93532.0,0.00015002]
[1736423145769,0.213793,93548.0,93538.0,0.213816]
[1736423145981,0.213771,93558.0,93539.0,0.13612634]
[1736423146185,0.10563551,93550.0,93539.0,0.13612634]
[1736423146392,0.001,93546.0,93541.0,0.213809]
[1736423146603,0.001,93546.0,93545.0,0.2138]
[1736423147243,0.10563551,93555.0,93541.0,0.31810876]
[1736423147449,0.213789,93550.0,93541.0,0.31810876]
[1736423147650,0.213789,93550.0,93541.0,0.10429976]
[1736423148103,0.21378,93554.0,93541.0,0.31810776]
[1736423148267,0.21378,93554.0,93542.0,0.05319228]
[1736423148465,0.21378,93554.0,93543.0,0.213805]
[1736423149120,0.002,93546.0,93543.0,0.213805]
[1736423149318,0.002,93546.0,93542.0,0.05319228]
[1736423149531,0.21578,93554.0,93543.0,0.213805]
[1736423149765,0.21778,93554.0,93543.0,0.2723155]
[1736423149878,0.213803,93544.0,93532.0,0.00015002]
[1736423150088,0.213791,93549.0,93537.0,0.213817]
[1736423150313,0.001,93546.0,93537.0,0.213817]
[1736423150845,0.213785,93552.0,93543.0,0.213803]
[1736423151046,0.01047252,93563.0,93552.0,0.213783]
[1736423151257,0.319761,93562.0,93552.0,0.31808276]
[1736423151466,0.105,93561.0,93552.0,0.31808276]
[1736423151667,0.10563551,93562.0,93552.0,0.31808276]
[1736423152115,0.213764,93561.0,93552.0,0.31808276]
[1736423152323,0.213787,93551.0,93545.0,0.0819]
[1736423152525,0.213787,93551.0,93537.0,0.213818]
[1736423152745,0.002,93546.0,93538.0,0.10429976]
[1736423152955,0.213795,93548.0,93538.0,0.10429976]
[1736423153193,0.213782,93554.0,93540.0,0.213812]
[1736423153402,0.213789,93550.0,93542.0,0.213805]
[1736423153610,0.213782,93554.0,93542.0,0.213805]
[1736423154039,0.002,93551.0,93542.0,0.213805]
[1736423154213,0.213782,93554.0,93542.0,0.213805]
[1736423154516,0.213782,93554.0,93545.0,0.001]
[1736423154669,0.213788,93551.0,93545.0,0.001]
[1736423154882,0.213788,93551.0,93541.0,0.10429976]
[1736423155312,0.213789,93550.0,93542.0,0.001]
[1736423155700,0.15,93534.0,93509.0,0.0783]
[1736423156095,0.445328,93533.0,93509.0,0.0783]
[1736423156300,2.9771,93533.0,93509.0,0.0783]
[1736423156935,2.9771,93533.0,93532.0,0.00115002]
[1736423157142,2.9771,93533.0,93532.0,0.00015002]
[1736423157615,2.9791,93533.0,93532.0,0.00015002]
[1736423158282,2.9791,93533.0,93532.0,0.00215002]
[1736423158890,2.9791,93533.0,93532.0,0.00015002]
[1736423160368,2.98995706,93533.0,93532.0,0.00015002]
[1736423160711,2.03318506,93533.0,93532.0,0.00015002]
[1736423160920,0.53968506,93533.0,93532.0,0.00015002]
[1736423161124,0.51268506,93533.0,93532.0,0.00015002]
[1736423161323,0.37668506,93533.0,93532.0,0.00015002]
[1736423161719,2.90845706,93533.0,93532.0,0.00015002]
[1736423162131,3.01075682,93533.0,93532.0,0.00015002]
[1736423162333,3.24195682,93533.0,93532.0,0.00015002]
[1736423162695,3.24595682,93533.0,93532.0,0.00015002]
[1736423163465,3.24195682,93533.0,93532.0,0.00015002]
[1736423163697,3.24595682,93533.0,93532.0,0.00015002]
[1736423164116,3.24195682,93533.0,93532.0,0.00015002]
[1736423164528,0.37868506,93533.0,93532.0,0.00015002]
[1736423164733,0.22468506,93533.0,93532.0,0.00015002]
[1736423164940,0.002,93533.0,93532.0,0.00015002]
[1736423165523,0.002,93533.0,93532.0,0.00115002]
[1736423165524,0.008,93533.0,93532.0,0.00115002]
[1736423165735,0.0107328,93545.0,93532.0,0.12594838]
[1736423165992,0.213803,93544.0,93533.0,0.10429976]
[1736423166378,0.10563551,93543.0,93533.0,0.10429976]
[1736423166579,0.213797,93547.0,93534.0,0.0795]
[1736423166809,0.131,93546.0,93534.0,0.0795]
[1736423166980,0.2138,93545.0,93534.0,0.293325]
[1736423167451,0.001,93544.0,93534.0,0.293325]
[1736423167651,0.427611,93543.0,93534.0,0.0795]
[1736423167976,0.213805,93543.0,93534.0,0.0795]
[1736423168206,0.10663551,93544.0,93534.0,0.0795]
[1736423168425,0.001,93544.0,93535.0,0.213823]
[1736423168640,0.213799,93546.0,93535.0,0.213823]
[1736423169065,0.215799,93546.0,93535.0,0.213823]
[1736423169266,0.213799,93546.0,93535.0,0.213823]
[1736423169464,0.213799,93546.0,93534.0,0.0805]
[1736423169672,0.213807,93543.0,93534.0,0.0805]
[1736423169879,0.213799,93546.0,93535.0,0.213823]
[1736423170248,0.002,93546.0,93538.0,0.213815]
[1736423170465,0.213794,93548.0,93536.0,0.06125988]
[1736423171787,0.213803,93544.0,93533.0,0.10429976]
[1736423172118,2.63840751,93543.0,93533.0,0.10429976]
[1736423172315,0.213807,93542.0,93533.0,0.10429976]
[1736423172907,0.213824,93535.0,93520.0,0.15469405]
[1736423173121,2.531772,93534.0,93533.0,0.001]
[1736423173885,0.213,93534.0,93533.0,0.001]
[1736423174269,0.213828,93533.0,93521.0,0.213854]
[1736423174485,2.147828,93533.0,93513.0,0.0001704]
[1736423174693,1.036828,93533.0,93513.0,0.0001704]